bitfinex/quotes_BTCUSD_20250225
["timestamp","ask_amount","ask_price","bid_price","bid_amount"]
[1740469071258,0.5341,89763.0,89746.0,0.00491405]
[1740469071259,0.01460272,89762.0,89746.0,0.00491405]
[1740469071418,1.40085779,89761.0,89725.0,0.35510575]
[1740469071622,1.457243,89761.0,89732.0,0.04509202]
[1740469071819,1.67551059,89760.0,89734.0,0.35510575]
[1740469072019,1.34761059,89759.0,89734.0,0.31536751]
[1740469072221,1.457243,89759.0,89710.0,0.01474982]
[1740469072439,0.3279,89758.0,89710.0,0.01474982]
[1740469072635,0.81351059,89757.0,89702.0,0.07141499]
[1740469072883,1.14141059,89756.0,89714.0,0.29967876]
[1740469073097,1.14141059,89756.0,89714.0,0.28528983]
[1740469073098,0.81351059,89755.0,89714.0,0.28528983]
[1740469073301,0.81351059,89755.0,89714.0,0.27953934]
[1740469073446,0.81351059,89755.0,89703.0,0.34946151]
[1740469073447,0.923143,89755.0,89703.0,0.34946151]
[1740469073646,0.923143,89755.0,89705.0,0.35510575]
[1740469074062,0.923143,89755.0,89725.0,0.30032491]
[1740469074273,1.67551059,89754.0,89725.0,0.30032491]
[1740469074482,1.785143,89754.0,89725.0,0.28874587]
[1740469074884,1.34761059,89753.0,89736.0,0.35510575]
[1740469075090,0.5341,89752.0,89748.0,0.35510575]
[1740469075402,0.10963241,89752.0,89748.0,0.35503755]
[1740469075588,0.10963241,89752.0,89748.0,0.35494441]
[1740469075986,0.10963241,89752.0,89751.0,0.35510575]
[1740469076493,0.64373241,89752.0,89751.0,0.35503189]
[1740469076693,0.64373241,89752.0,89733.0,0.0822]
[1740469076933,0.64373241,89752.0,89734.0,0.35415735]
[1740469077109,0.64373241,89752.0,89733.0,0.0822]
[1740469077323,0.862,89751.0,89733.0,0.0822]
[1740469077544,0.97163241,89751.0,89734.0,0.35510575]
[1740469077847,0.5341,89750.0,89734.0,0.34591626]
[1740469078067,1.14141059,89749.0,89733.0,0.0822]
[1740469078262,0.5341,89748.0,89734.0,0.35510575]
[1740469078468,0.64373241,89748.0,89734.0,0.35510575]
[1740469078691,0.64373241,89748.0,89746.0,0.35510575]
[1740469078810,0.43496,89747.0,89746.0,0.33503902]
[1740469079006,0.54459241,89747.0,89734.0,0.35510575]
[1740469079252,0.10963241,89747.0,89744.0,0.26810575]
[1740469079455,0.5341,89746.0,89744.0,0.26810575]
[1740469079716,0.64373241,89746.0,89745.0,0.0451]
[1740469080112,0.64373241,89746.0,89745.0,0.04503803]
[1740469080315,0.00252793,89751.0,89745.0,0.04503803]
[1740469080714,0.22537793,89751.0,89745.0,0.04503803]
[1740469081163,0.22537793,89751.0,89725.0,0.10468957]
[1740469081357,0.22537793,89751.0,89725.0,0.10462712]
[1740469081550,0.22537793,89751.0,89736.0,0.35510575]
[1740469081718,0.22537793,89751.0,89745.0,0.27200312]
[1740469081921,0.22537793,89751.0,89745.0,0.21595378]
[1740469082115,0.14727793,89751.0,89745.0,0.21595378]
[1740469082340,0.01354859,89736.0,89714.0,0.2855858]
[1740469082540,0.03,89735.0,89714.0,0.21478054]
[1740469082754,0.05652184,89736.0,89733.0,0.35510575]
[1740469082954,0.22288,89736.0,89733.0,0.35510575]
[1740469083154,0.22288,89736.0,89714.0,0.21478054]
[1740469083155,0.11748,89736.0,89714.0,0.21478054]
[1740469083357,0.11748,89736.0,89723.0,0.35510575]
[1740469083557,0.11748,89736.0,89735.0,0.35510575]
[1740469083558,0.10378,89736.0,89735.0,0.35510575]
[1740469083789,0.10378,89736.0,89735.0,0.35504355]
[1740469083992,0.03218,89736.0,89735.0,0.35504355]
[1740469084794,0.45359539,89754.0,89735.0,0.35504355]
[1740469085015,0.45359539,89754.0,89753.0,0.13215504]
[1740469085156,0.00054126,89760.0,89753.0,0.13215504]
[1740469085536,0.03478245,89812.0,89791.0,0.35510575]
[1740469085946,0.25749245,89812.0,89791.0,0.35510575]
[1740469086292,0.05585844,89857.0,89832.0,0.35510575]
[1740469086474,0.05526548,89856.0,89755.0,0.54273165]
[1740469086733,0.22473976,89852.0,89756.0,0.54429133]
[1740469086947,0.22473976,89852.0,89757.0,0.54273165]
[1740469087077,0.22473976,89852.0,89758.0,0.53184093]
[1740469087304,0.00155906,89851.0,89791.0,0.3563276]
[1740469087641,0.22455861,89851.0,89792.0,0.4747118]
[1740469087781,0.22261,89851.0,89792.0,0.4747118]
[1740469087984,0.22261,89851.0,89792.0,0.473763]
[1740469088256,0.22261,89851.0,89793.0,0.00077891]
[1740469088462,0.22261,89851.0,89792.0,0.473763]
[1740469088663,0.00194896,89850.0,89745.0,0.473763]
[1740469088954,0.43476,89849.0,89759.0,0.03]
[1740469089148,0.00194899,89848.0,89759.0,0.03]
[1740469089451,0.22455899,89848.0,89814.0,0.3563276]
[1740469089626,0.22261,89848.0,89838.0,0.3563276]
[1740469089811,0.05526548,89856.0,89847.0,0.38056415]
[1740469089994,0.0457,89929.0,89847.0,0.35056415]
[1740469090193,0.05533613,89905.0,89847.0,0.35056415]
[1740469090400,0.27783613,89905.0,89847.0,0.35056415]
[1740469090760,0.27801215,89905.0,89847.0,0.35056415]
[1740469090935,0.22267602,89905.0,89900.0,0.35604497]
[1740469091150,0.05538815,89890.0,89864.0,0.3563276]
[1740469091354,0.2225,89890.0,89873.0,0.3563276]
[1740469091895,0.2225,89890.0,89848.0,0.473763]
[1740469092019,0.0019472,89889.0,89849.0,0.46086035]
[1740469092218,0.2244472,89889.0,89850.0,0.46163708]
[1740469092456,0.2225,89889.0,89862.0,0.3563276]
[1740469092670,0.2225,89889.0,89862.0,0.31626752]
[1740469092874,0.00017602,89905.0,89862.0,0.31626752]
[1740469093108,0.00017602,89905.0,89863.0,0.4609287]
[1740469093223,0.22268602,89905.0,89863.0,0.20422025]
[1740469093426,0.10243376,89863.0,89795.0,0.32356208]
[1740469093629,0.00194657,89904.0,89824.0,0.3563276]
[1740469093851,0.22268602,89904.0,89825.0,0.5428]
[1740469094063,0.00157519,89863.0,89826.0,0.5428]
[1740469094342,0.00157519,89863.0,89827.0,0.5428]
[1740469094565,0.00157519,89863.0,89796.0,0.3235]
[1740469094883,0.00157519,89863.0,89797.0,0.6472]
[1740469095115,0.00157519,89863.0,89804.0,0.3563276]
[1740469095391,0.00157519,89863.0,89792.0,0.3563276]
[1740469095614,0.0020039,89863.0,89779.0,0.35075596]
[1740469095771,0.0020039,89863.0,89780.0,0.0350756]
[1740469095975,0.0020039,89863.0,89781.0,0.2728]
[1740469096177,0.0020039,89863.0,89779.0,0.3235]
[1740469096378,0.0020039,89863.0,89780.0,0.5428]
[1740469096702,0.0020039,89863.0,89781.0,0.5428]
[1740469096903,0.0020039,89863.0,89779.0,0.0035]
[1740469096904,0.0020039,89863.0,89782.0,0.5428]
[1740469097206,0.0037075,89863.0,89783.0,0.05463]
[1740469097382,0.0037075,89863.0,89780.0,0.5407]
[1740469097632,0.0037075,89863.0,89780.0,0.4848206]
[1740469097843,0.0037075,89863.0,89781.0,0.4848206]
[1740469098015,0.0037075,89863.0,89781.0,0.4832206]
[1740469098419,0.0037075,89863.0,89782.0,0.4832206]
[1740469098622,0.0037075,89863.0,89783.0,0.4832206]
[1740469098876,0.43424,89862.0,89783.0,0.4777206]
[1740469099051,0.16284,89862.0,89784.0,0.4777206]
[1740469099302,0.16284,89862.0,89785.0,0.8012206]
[1740469099441,0.01665475,89861.0,89786.0,1.42792275]
[1740469099640,0.0037075,89863.0,89781.0,0.04630088]
[1740469099843,0.0037075,89863.0,89779.0,0.0035]
[1740469100051,0.00157519,89862.0,89779.0,0.0035]
[1740469100766,0.00157519,89862.0,89861.0,0.12]
[1740469101010,0.00213231,89863.0,89787.0,0.3235]
[1740469101142,0.00213231,89863.0,89786.0,0.8651]
[1740469101343,0.00213231,89863.0,89779.0,0.0035]
[1740469101755,0.00213231,89863.0,89771.0,0.43011827]
[1740469101979,0.00213231,89863.0,89772.0,0.5428]
[1740469102181,0.00213231,89863.0,89773.0,0.5428]
[1740469102823,0.00213231,89863.0,89771.0,0.5428]
[1740469103148,0.00213231,89863.0,89751.0,0.5428]
[1740469103441,0.00213231,89863.0,89771.0,0.5428]
[1740469103578,0.00213231,89863.0,89772.0,0.5428]
[1740469103783,0.09307621,89903.0,89773.0,0.5428]
[1740469103983,0.31685223,89903.0,89774.0,0.5428]
[1740469104237,0.03168522,89902.0,89775.0,0.59712787]
[1740469104442,0.03186124,89902.0,89775.0,0.05432787]
[1740469104653,0.03186124,89902.0,89770.0,0.00047871]
[1740469104799,0.81351059,89901.0,89770.0,0.00047871]
[1740469105242,1.1357868,89900.0,89770.0,0.00047871]
[1740469105439,1.13596282,89900.0,89770.0,0.00047871]
[1740469105642,0.81351059,89899.0,89770.0,0.00047871]
[1740469105843,0.10806897,89898.0,89770.0,0.00047871]
[1740469106044,0.10824499,89898.0,89770.0,0.00047871]
[1740469107188,0.32227621,89897.0,89770.0,0.00047871]
[1740469107388,0.32245223,89897.0,89770.0,0.00047871]
[1740469107626,0.32245223,89897.0,89771.0,0.5428]
[1740469107804,0.10806897,89896.0,89772.0,0.5428]
[1740469107957,0.32227621,89895.0,89770.0,0.00047871]
[1740469108161,0.81351059,89894.0,89770.0,0.00047871]
[1740469108396,0.81368661,89894.0,89770.0,0.00031474]
[1740469108589,1.1357868,89893.0,89770.0,0.00031474]
[1740469108825,0.3563276,89882.0,89770.0,0.00031474]
[1740469109031,0.3563276,89873.0,89770.0,0.00031474]
[1740469109201,0.3563276,89873.0,89770.0,0.00116614]
[1740469109402,1.1357868,89872.0,89770.0,0.00116614]
[1740469109628,0.3563276,89864.0,89770.0,0.00116614]
[1740469109929,0.03563276,89863.0,89770.0,0.00116614]
[1740469110083,0.35790897,89863.0,89770.0,0.00116614]
[1740469110485,5.371e-05,89862.0,89770.0,0.00116614]
[1740469111585,0.03563276,89863.0,89770.0,0.00111243]
[1740469111787,0.08610296,89892.0,89770.0,0.00111243]
[1740469112001,0.08627898,89892.0,89770.0,0.00111243]
[1740469112412,0.08627898,89892.0,89771.0,0.0028]
[1740469112716,0.08627898,89892.0,89772.0,0.0028]
[1740469112907,0.1016314,89896.0,89773.0,0.0028]
[1740469113438,0.1016314,89896.0,89773.0,0.00276]
[1740469114222,0.1016314,89896.0,89770.0,0.00111243]
[1740469114366,0.10806897,89895.0,89770.0,0.00111243]
[1740469114565,0.10806897,89895.0,89770.0,0.00087633]
[1740469115536,0.10806897,89895.0,89736.0,0.00345219]
[1740469115692,0.10849794,89895.0,89737.0,0.00181705]
[1740469115892,0.10849794,89895.0,89738.0,0.00181705]
[1740469116103,0.08610296,89894.0,89739.0,0.00181705]
[1740469116313,0.08510296,89894.0,89740.0,0.00181705]
[1740469116490,0.03510296,89894.0,89741.0,0.00181705]
[1740469116691,0.03510296,89894.0,89742.0,0.00181705]
[1740469116935,0.03510296,89894.0,89743.0,0.33041705]
[1740469117112,0.1016314,89893.0,89744.0,0.03995875]
[1740469117319,0.1016314,89893.0,89745.0,0.33041705]
[1740469117554,0.1016314,89893.0,89746.0,0.00181705]
[1740469117829,0.1016314,89893.0,89747.0,0.33041705]
[1740469118323,0.00055119,89899.0,89748.0,0.035402]
[1740469118499,0.00055119,89899.0,89748.0,0.03583097]
[1740469118812,0.16252,89898.0,89748.0,0.03583097]
[1740469119580,0.16252,89898.0,89749.0,0.33041705]
[1740469119801,0.16252,89898.0,89750.0,0.04684602]
[1740469120003,0.16252,89898.0,89751.0,0.33041705]
[1740469120386,0.16252,89898.0,89751.0,0.32947304]
[1740469120584,0.16252,89898.0,89753.0,0.05532881]
[1740469120783,0.16252,89898.0,89754.0,0.32531705]
[1740469120991,0.16252,89898.0,89756.0,0.05587016]
[1740469121568,0.16252,89898.0,89758.0,0.05566297]
[1740469121769,0.16252,89898.0,89760.0,0.05526228]
[1740469121965,0.16252,89898.0,89762.0,0.05553976]
[1740469122255,0.16252,89898.0,89764.0,0.05587993]
[1740469122409,0.16252,89898.0,89766.0,0.05554204]
[1740469122609,0.16252,89898.0,89768.0,0.05585021]
[1740469122817,0.00055119,89899.0,89770.0,0.05546034]
[1740469123039,0.00055119,89899.0,89765.0,0.0385353]
[1740469123040,0.16248,89898.0,89772.0,0.05520697]
[1740469123224,0.16248,89898.0,89774.0,0.05520242]
[1740469123386,0.16248,89898.0,89776.0,0.05585101]
[1740469123587,0.16248,89898.0,89778.0,0.05507997]
[1740469123946,0.16248,89898.0,89779.0,0.32947304]
[1740469123947,0.1641806,89898.0,89779.0,0.32947304]
[1740469124186,0.1641806,89898.0,89780.0,1.46389406]
[1740469124339,0.1641806,89898.0,89782.0,0.05592124]
[1740469124662,0.1641806,89898.0,89782.0,0.05635021]
[1740469125064,0.1641806,89898.0,89784.0,0.05510321]
[1740469125250,0.1641806,89898.0,89786.0,0.05554511]
[1740469125444,0.1641806,89898.0,89788.0,0.05598395]
[1740469125626,0.16244,89897.0,89790.0,0.05522438]
[1740469125826,0.16244,89897.0,89792.0,0.05584745]
[1740469126047,0.16244,89897.0,89794.0,0.05599211]
[1740469126366,0.16244,89897.0,89796.0,0.05559385]
[1740469126523,0.16244,89897.0,89798.0,0.05517201]
[1740469126726,0.16244,89897.0,89800.0,0.05561561]
[1740469126950,0.16244,89897.0,89802.0,0.05511853]
[1740469127153,0.16244,89897.0,89804.0,0.05500581]
[1740469127802,9.76219165,89900.0,89804.0,0.05500581]
[1740469127972,0.10806897,89899.0,89806.0,0.05542237]
[1740469128582,0.10806897,89899.0,89808.0,0.05563722]
[1740469128758,0.3563276,89890.0,89810.0,0.05598612]
[1740469129081,0.3563276,89870.0,89805.0,0.09213058]
[1740469129292,0.03563276,89869.0,89806.0,0.00921306]
[1740469129459,0.1624,89898.0,89738.0,0.48827583]
[1740469129675,0.1624,89898.0,89737.0,0.3235]
[1740469129676,0.1624,89898.0,89739.0,0.48827583]
[1740469129879,0.1624,89898.0,89740.0,0.48827583]
[1740469130401,0.1624,89898.0,89741.0,1.67687583]
[1740469131041,0.1624,89898.0,89742.0,1.35337583]
[1740469131245,0.10806897,89897.0,89743.0,1.67687583]
[1740469131492,0.1624,89898.0,89744.0,1.35337583]
[1740469131681,0.1624,89898.0,89745.0,1.67687583]
[1740469131813,0.1624,89898.0,89746.0,1.35337583]
[1740469132013,0.1624,89898.0,89747.0,1.67687583]
[1740469132862,0.69777461,89756.0,89747.0,1.67687583]
[1740469133077,0.14032649,89756.0,89748.0,0.8651]
[1740469133399,0.13454314,89756.0,89749.0,0.3235]
[1740469133592,0.13353946,89756.0,89750.0,0.8651]
[1740469133998,0.13353946,89756.0,89751.0,0.8651]
[1740469134295,0.13353946,89756.0,89752.0,1.1886]
[1740469134523,0.13353946,89756.0,89753.0,0.8651]
[1740469135082,0.16236,89808.0,89753.0,0.8651]
[1740469135337,0.16236,89865.0,89754.0,1.7314]
[1740469135473,0.16236,89865.0,89755.0,1.7314]
[1740469135673,0.16236,89865.0,89756.0,1.7314]
[1740469135878,0.16236,89865.0,89757.0,1.7314]
[1740469136084,0.16232,89918.0,89758.0,1.7314]
[1740469136312,0.16232,89918.0,89759.0,1.7314]
[1740469136623,0.16232,89918.0,89761.0,0.05586822]
[1740469136822,0.16232,89918.0,89763.0,0.05595245]
[1740469137107,0.16232,89918.0,89765.0,0.05551621]
[1740469137639,0.16232,89918.0,89739.0,0.00042897]
[1740469137640,0.16232,89918.0,89767.0,0.05585967]
[1740469137849,0.16232,89918.0,89769.0,0.05584309]
[1740469138056,9.76389205,89900.0,89771.0,0.0551439]
[1740469138265,0.31399857,89838.0,89773.0,0.05532202]
[1740469138492,0.30899857,89838.0,89775.0,0.05591486]
[1740469138862,0.30899857,89838.0,89775.0,0.05634383]
[1740469139061,9.76389205,89900.0,89777.0,0.05525058]
[1740469139263,9.76389205,89900.0,89779.0,0.05527845]
[1740469139693,9.76389205,89900.0,89781.0,0.05575295]
[1740469140109,9.76389205,89900.0,89783.0,0.05599081]
[1740469140508,9.76389205,89900.0,89785.0,0.05556088]
[1740469141125,9.66389205,89900.0,89785.0,0.05556088]
[1740469141327,9.66389205,89900.0,89804.0,0.28079642]
[1740469141488,9.66389205,89900.0,89805.0,1.42240143]
[1740469142027,9.66389205,89900.0,89806.0,0.05595544]
[1740469142429,9.66389205,89900.0,89808.0,0.05519126]
[1740469142894,9.66389205,89900.0,89810.0,0.05567242]
[1740469143065,9.60789289,89900.0,89812.0,0.05592085]
[1740469143240,9.60789289,89900.0,89813.0,1.42240143]
[1740469143444,9.60789289,89900.0,89814.0,0.05559234]
[1740469143647,9.60765696,89900.0,89814.0,0.05559234]
[1740469144250,9.60765696,89900.0,89816.0,0.05544052]
[1740469144459,9.60765696,89900.0,89816.0,0.05580317]
[1740469144664,9.60765696,89900.0,89818.0,0.05545565]
[1740469145291,9.60655045,89900.0,89820.0,0.05577713]
[1740469145613,9.60494059,89900.0,89822.0,0.05576034]
[1740469145928,9.60494059,89900.0,89824.0,0.05554875]
[1740469146260,9.60494059,89900.0,89826.0,0.05542201]
[1740469146501,9.60494059,89900.0,89828.0,0.05560253]
[1740469146714,9.60494059,89900.0,89830.0,0.05587512]
[1740469146888,9.60494059,89900.0,89832.0,0.05521533]
[1740469147090,9.60494059,89900.0,89834.0,0.05572905]
[1740469147293,9.60494059,89900.0,89836.0,0.05501687]
[1740469147660,9.60494059,89900.0,89838.0,0.0553495]
[1740469148273,8.95897234,89900.0,89840.0,0.05513787]
[1740469148472,8.95450131,89900.0,89842.0,0.0552879]
[1740469149600,8.95450131,89900.0,89844.0,0.05522578]
[1740469150400,8.80606861,89900.0,89843.0,1.3432799]
[1740469150605,8.80403671,89900.0,89843.0,1.3432799]
[1740469150908,8.80403671,89900.0,89844.0,1.3432799]
[1740469151109,8.59403671,89900.0,89845.0,0.05589377]
[1740469151557,8.38403671,89900.0,89846.0,1.3432799]
[1740469151767,8.38403671,89900.0,89847.0,0.05589018]
[1740469151968,8.0503326,89900.0,89847.0,0.05589018]
[1740469152347,8.0503326,89900.0,89849.0,0.05545645]
[1740469152552,8.0500964,89900.0,89851.0,0.05534639]
[1740469152751,8.0500964,89900.0,89853.0,0.05520049]
[1740469152951,8.0500964,89900.0,89855.0,0.05536397]
[1740469153281,8.0500964,89900.0,89857.0,0.05506593]
[1740469153425,7.83453474,89900.0,89859.0,0.055443]
[1740469153637,7.67985484,89900.0,89861.0,0.05569483]
[1740469153864,7.34615073,89900.0,89863.0,0.05500773]
[1740469154478,7.34615073,89900.0,89840.0,5e-05]
[1740469154479,7.34615073,89900.0,89865.0,0.05558391]
[1740469154682,7.34615073,89900.0,89867.0,0.05527268]
[1740469154941,7.34615073,89900.0,89869.0,0.05586973]
[1740469155145,7.34615073,89900.0,89871.0,0.05580924]
[1740469155479,7.34615073,89900.0,89873.0,0.05568039]
[1740469155887,7.34615073,89900.0,89875.0,0.05562958]
[1740469157233,7.13427389,89900.0,89876.0,1.1886]
[1740469157632,6.92418402,89900.0,89877.0,0.05564448]
[1740469157836,6.56402989,89900.0,89877.0,0.05564448]
[1740469158052,6.56402989,89900.0,89876.0,1.1886]
[1740469158254,6.35393994,89900.0,89876.0,1.1886]
[1740469158455,6.35393994,89900.0,89877.0,0.8651]
[1740469158880,5.11728171,89900.0,89878.0,0.85489592]
[1740469159078,4.51475796,89900.0,89880.0,0.05566311]
[1740469159255,4.51475796,89900.0,89879.0,0.85489592]
[1740469159256,4.27922605,89900.0,89879.0,0.85489592]
[1740469159473,4.27922605,89900.0,89880.0,0.3235]
[1740469159678,4.27922605,89900.0,89881.0,0.85489592]
[1740469159877,4.27922605,89900.0,89882.0,1.17839592]
[1740469160280,4.27886517,89900.0,89883.0,0.85489592]
[1740469160501,4.27886517,89900.0,89860.0,5e-05]
[1740469160502,4.27886517,89900.0,89884.0,1.17839592]
[1740469161301,4.27886517,89900.0,89885.0,1.39769592]
[1740469161506,4.27886517,89900.0,89886.0,1.72119592]
[1740469163140,4.27726084,89900.0,89886.0,1.72119592]
[1740469163714,4.27726084,89900.0,89887.0,0.5428]
[1740469163917,4.0472029,89900.0,89887.0,0.5428]
[1740469164144,0.3563276,89889.0,89887.0,0.5428]
[1740469164348,0.3563276,89889.0,89880.0,5e-05]
[1740469164577,4.0472029,89900.0,89880.0,5e-05]
[1740469164795,4.0472029,89900.0,89881.0,0.5428]
[1740469165082,0.3563276,89898.0,89881.0,0.5428]
[1740469165282,0.3563276,89888.0,89880.0,5e-05]
[1740469165499,0.3563276,89888.0,89881.0,0.5428]
[1740469165707,0.3563276,89898.0,89881.0,0.5428]
[1740469166111,4.0472029,89900.0,89881.0,0.5428]
[1740469166607,4.0472029,89900.0,89882.0,0.5428]
[1740469167028,4.0472029,89900.0,89883.0,0.5428]
[1740469167560,3.9972029,89900.0,89884.0,0.5428]
[1740469167764,3.99054175,89900.0,89885.0,0.5428]
[1740469167998,3.99054175,89900.0,89886.0,0.5428]
[1740469168205,3.99054175,89900.0,89887.0,0.5428]
[1740469168425,3.99054175,89900.0,89888.0,0.5428]
[1740469168627,3.99054175,89900.0,89889.0,0.5428]
[1740469168994,3.44774175,89900.0,89881.0,0.5428]
[1740469169149,3.44774175,89900.0,89882.0,0.3235]
[1740469169353,3.44774175,89900.0,89883.0,0.85489592]
[1740469169553,3.44774175,89900.0,89884.0,1.17839592]
[1740469169757,3.44644175,89900.0,89884.0,0.3235]
[1740469170314,3.44644175,89900.0,89861.0,0.05511383]
[1740469170517,3.44644175,89900.0,89821.0,0.05545742]
[1740469170878,0.570778,89899.0,89823.0,0.05517838]
[1740469171073,0.570778,89899.0,89824.0,1.7314]
[1740469171279,0.570778,89899.0,89825.0,1.46325232]
[1740469171476,0.570778,89899.0,89827.0,0.05586319]
[1740469171696,0.570778,89899.0,89829.0,0.05584645]
[1740469172198,3.44644175,89900.0,89831.0,0.0558795]
[1740469172395,0.570778,89899.0,89833.0,0.05524713]
[1740469172596,0.570778,89899.0,89873.0,0.0008502]
[1740469172739,0.570778,89899.0,89875.0,0.0558153]
[1740469172940,3.44644175,89900.0,89877.0,0.05581947]
[1740469173171,3.44644175,89900.0,89876.0,0.5428]
[1740469173172,3.34492379,89900.0,89876.0,0.5428]
[1740469173370,3.34492379,89900.0,89832.0,0.3235]
[1740469173371,3.34492379,89900.0,89877.0,0.5428]
[1740469173573,3.34492379,89900.0,89837.0,0.5428]
[1740469173772,0.956934,89899.0,89839.0,0.05532871]
[1740469173974,0.852132,89898.0,89841.0,0.05561381]
[1740469174173,3.34492379,89900.0,89843.0,0.05522053]
[1740469174174,0.957783,89899.0,89843.0,0.05522053]
[1740469174392,0.998031,89899.0,89845.0,0.055904]
[1740469174592,0.894865,89898.0,89846.0,0.92145863]
[1740469174789,1.138707,89899.0,89846.0,0.92145863]
[1740469175194,0.894784,89899.0,89848.0,0.05521081]
[1740469175400,3.34492379,89900.0,89846.0,0.3235]
[1740469175401,0.680475,89898.0,89849.0,0.59802278]
[1740469175598,0.441335,89897.0,89850.0,0.59823863]
[1740469175834,0.66619564,89873.0,89851.0,0.5428]
[1740469176040,1.05382514,89872.0,89852.0,0.5428]
[1740469176189,1.05382514,89872.0,89853.0,0.5428]
[1740469176375,2.183571,89872.0,89853.0,0.5428]
[1740469176582,0.29882147,89855.0,89853.0,0.5428]
[1740469176781,0.85537,89854.0,89805.0,0.5428]
[1740469177000,0.83081271,89854.0,89807.0,0.02283417]
[1740469177174,0.378933,89853.0,89809.0,0.05586599]
[1740469177374,0.29882147,89875.0,89811.0,0.02266375]
[1740469177630,1.188677,89874.0,89813.0,0.03216313]
[1740469177932,0.661581,89884.0,89813.0,0.03216313]
[1740469178147,0.661581,89884.0,89815.0,0.0315483]
[1740469178290,0.66169821,89884.0,89815.0,0.0315483]
[1740469178492,1.582793,89883.0,89815.0,0.0315483]
[1740469178717,0.29882147,89862.0,89815.0,0.0315483]
[1740469179034,0.92764,89861.0,89815.0,0.0315483]
[1740469179263,0.939685,89860.0,89815.0,0.0315483]
[1740469179463,0.87171221,89860.0,89815.0,0.0315483]
[1740469179614,1.666394,89859.0,89816.0,0.5428]
[1740469179793,1.53609821,89859.0,89817.0,0.02218078]
[1740469179980,1.53673,89858.0,89819.0,0.03196162]
[1740469180189,1.53684721,89858.0,89819.0,0.03196162]
[1740469180387,1.940037,89857.0,89821.0,0.03132573]
[1740469180610,1.85041721,89857.0,89823.0,0.0310093]
[1740469180818,1.795419,89856.0,89825.0,0.03033361]
[1740469181048,2.12521894,89855.0,89827.0,0.05500153]
[1740469181267,2.910734,89854.0,89827.0,0.05500153]
[1740469181426,2.57943,89853.0,89829.0,0.05501737]
[1740469181628,2.43695563,89852.0,89831.0,0.05596587]
[1740469181869,1.752708,89851.0,89830.0,0.5428]
[1740469182030,2.087389,89850.0,89830.0,0.5428]
[1740469182426,0.992189,89849.0,89830.0,0.5428]
[1740469182630,1.711726,89848.0,89830.0,0.5428]
[1740469182837,2.002456,89847.0,89830.0,0.5428]
[1740469183039,2.059113,89846.0,89830.0,0.5428]
[1740469183250,1.663204,89845.0,89830.0,0.5428]
[1740469183456,2.720487,89844.0,89830.0,0.5428]
[1740469183658,3.115135,89843.0,89830.0,0.5428]
[1740469183864,2.942204,89842.0,89830.0,0.5428]
[1740469184087,3.433376,89841.0,89830.0,0.5428]
[1740469184294,3.687492,89840.0,89830.0,0.5428]
[1740469184464,2.333826,89839.0,89830.0,0.5428]
[1740469184665,2.31541247,89854.0,89810.0,0.5428]
[1740469184874,2.077481,89853.0,89811.0,0.5428]
[1740469185044,1.086349,89852.0,89811.0,0.5428]
[1740469185983,0.88533736,89852.0,89812.0,0.05596314]
[1740469186136,3.432749,89852.0,89812.0,0.05596314]
[1740469186337,2.253923,89851.0,89812.0,0.05596314]
[1740469186619,2.799092,89850.0,89812.0,0.05596314]
[1740469186884,3.449144,89849.0,89812.0,0.05596314]
[1740469187085,3.797195,89848.0,89812.0,0.05596314]
[1740469187400,3.797195,89847.0,89813.0,0.5252]
[1740469187577,3.797195,89846.0,89814.0,0.05523031]
[1740469187776,0.00011721,89853.0,89814.0,0.05523031]
[1740469187777,3.610931,89845.0,89814.0,0.5252]
[1740469187987,2.541544,89844.0,89814.0,0.5252]
[1740469188234,2.498771,89843.0,89815.0,0.5252]
[1740469188383,0.29882147,89827.0,89815.0,0.5252]
[1740469188582,1.892135,89826.0,89810.0,0.05547284]
[1740469188854,1.69950889,89825.0,89810.0,0.05547284]
[1740469188966,0.00011721,89853.0,89810.0,0.05547284]
[1740469188967,3.078828,89826.0,89810.0,0.05547284]
[1740469189170,0.29882147,89845.0,89810.0,0.05547284]
[1740469189435,2.718262,89844.0,89812.0,0.05596314]
[1740469189630,2.180942,89844.0,89814.0,0.05523031]
[1740469189831,1.749669,89843.0,89815.0,0.5428]
[1740469190080,1.905947,89852.0,89816.0,0.37944046]
[1740469190286,1.466918,89852.0,89818.0,0.05561969]
[1740469190488,1.251332,89851.0,89819.0,0.92226162]
[1740469190689,1.25144921,89851.0,89819.0,0.92226162]
[1740469190823,0.656696,89850.0,89820.0,0.5981445]
[1740469191019,0.65681321,89850.0,89820.0,0.5981445]
[1740469191221,1.103062,89849.0,89821.0,0.8663]
[1740469191441,1.229755,89848.0,89821.0,0.8663]
[1740469191636,1.71462,89849.0,89821.0,0.92162573]
[1740469191836,1.548273,89849.0,89821.0,0.92162573]
[1740469192334,2.166936,89848.0,89821.0,0.92162573]
[1740469192535,1.951093,89847.0,89821.0,0.92162573]
[1740469192761,2.025318,89846.0,89821.0,0.92162573]
[1740469192961,1.82977,89845.0,89821.0,0.92162573]
[1740469193136,1.863107,89844.0,89822.0,0.5980809]
[1740469193386,1.563612,89843.0,89823.0,0.5978093]
[1740469193607,0.00011721,89850.0,89824.0,0.59808866]
[1740469193608,1.582143,89842.0,89824.0,0.59808866]
[1740469193788,1.682031,89841.0,89825.0,0.59813361]
[1740469193985,1.438016,89840.0,89826.0,0.59860862]
[1740469194212,1.637759,89839.0,89827.0,0.8663]
[1740469194532,0.704779,89838.0,89828.0,0.5428]
[1740469194739,0.957284,89837.0,89828.0,0.59802524]
[1740469194976,0.990897,89836.0,89829.0,0.5428]
[1740469195177,0.00011721,89850.0,89829.0,0.59781737]
[1740469195379,0.897076,89849.0,89831.0,0.05596587]
[1740469195524,0.910391,89848.0,89831.0,0.05596587]
[1740469195906,0.910391,89848.0,89832.0,0.59877114]
[1740469196120,0.698611,89847.0,89833.0,0.5428]
[1740469196304,0.941184,89846.0,89834.0,0.59876844]
[1740469196503,0.140277,89845.0,89835.0,0.5428]
[1740469196710,0.00011721,89849.0,89836.0,0.45765348]
[1740469197012,0.866896,89848.0,89837.0,0.726023]
[1740469197214,0.5,89844.0,89838.0,0.402523]
[1740469197378,0.591373,89843.0,89838.0,0.402523]
[1740469197537,0.497585,89843.0,89838.0,0.45817554]
[1740469197739,0.4443631,89844.0,89838.0,0.726023]
[1740469197984,0.776876,89843.0,89838.0,0.72645171]
[1740469198601,0.328829,89843.0,89839.0,0.402523]
[1740469198798,1.780946,89843.0,89839.0,0.402523]
[1740469199036,1.542617,89843.0,89839.0,0.402523]
[1740469199181,1.968947,89843.0,89839.0,0.402523]
[1740469199787,0.4999991,89844.0,89839.0,0.402523]